bitfinex/quotes_BTCUSD_20250518
["timestamp","ask_amount","ask_price","bid_price","bid_amount"]
[1747600840859,0.64886772,103990.0,103980.0,0.0485]
[1747600841071,0.01750682,104010.0,104000.0,0.25042298]
[1747600841276,0.01750682,104010.0,104000.0,0.24080769]
[1747600841277,0.66384487,104010.0,104000.0,0.24080769]
[1747600841479,0.66144086,104010.0,104000.0,0.25042307]
[1747600841717,0.33122874,104010.0,104000.0,0.25042307]
[1747600841929,0.32161493,104010.0,104000.0,0.25042307]
[1747600842165,0.12915166,104010.0,104000.0,0.2792681]
[1747600842374,0.49871098,104010.0,104000.0,0.28845092]
[1747600842587,0.13876612,104010.0,104000.0,0.28845092]
[1747600842803,0.14217013,104010.0,104000.0,0.28845092]
[1747600843046,0.67938637,104010.0,104000.0,0.28845092]
[1747600843226,0.67698236,104010.0,104000.0,0.28845092]
[1747600843451,0.67898236,104010.0,104000.0,0.28845092]
[1747600843663,0.67898236,104010.0,104000.0,0.278836]
[1747600843870,0.67898236,104010.0,104000.0,0.26922099]
[1747600844073,0.66936827,104010.0,104000.0,0.26922099]
[1747600844648,0.67901897,104010.0,104000.0,0.27883618]
[1747600844858,0.67901897,104010.0,104000.0,0.30691263]
[1747600844859,0.01561362,104010.0,104000.0,0.30691263]
[1747600845076,0.01561362,104010.0,104000.0,0.52213]
[1747600845077,0.006,104010.0,104000.0,0.52213]
[1747600845279,0.006,104010.0,104000.0,0.93749]
[1747600845912,0.004,104010.0,104000.0,0.93749]
[1747600846793,0.004,104010.0,104000.0,1.0347994]
[1747600847016,0.001,104030.0,104020.0,0.2299569]
[1747600847232,0.001,104030.0,104020.0,0.2776569]
[1747600847437,0.01061187,104030.0,104020.0,0.2776569]
[1747600847661,0.001,104030.0,104020.0,0.2776569]
[1747600848105,0.02022383,104030.0,104020.0,0.2776569]
[1747600848302,0.02022383,104030.0,104020.0,0.28681543]
[1747600848524,0.02983616,104030.0,104020.0,0.28681543]
[1747600848736,0.03944858,104030.0,104020.0,0.29281543]
[1747600848943,0.03944858,104030.0,104020.0,0.51721543]
[1747600849159,0.04906109,104030.0,104020.0,0.51721543]
[1747600849413,0.03944858,104030.0,104020.0,0.51721543]
[1747600849629,0.03944867,104030.0,104020.0,0.51721553]
[1747600849863,0.03944867,104030.0,104020.0,0.50805709]
[1747600850070,0.66432732,104030.0,104020.0,0.25456]
[1747600850280,1.22385468,104030.0,104020.0,0.006]
[1747600850952,0.20188406,104020.0,104010.0,0.01147385]
[1747600851156,0.29919346,104020.0,104010.0,0.01147385]
[1747600851534,0.55644432,104010.0,104000.0,0.25326]
[1747600853350,0.55644432,104010.0,104000.0,0.26210671]
[1747600853556,0.55644432,104010.0,104000.0,0.25326]
[1747600853790,0.55644432,104010.0,104000.0,0.26210671]
[1747600853996,0.55644432,104010.0,104000.0,0.26310671]
[1747600854229,0.65375372,104010.0,104000.0,0.25426]
[1747600854680,0.65375372,104010.0,104000.0,0.22636]
[1747600855736,0.68261672,104010.0,104000.0,0.22636]
[1747600855946,0.68261672,104010.0,104000.0,0.002]
[1747600858887,0.98509361,104010.0,104000.0,0.002]
[1747600859317,1.3212705,104010.0,104000.0,0.002]
[1747600859528,1.3477705,104010.0,104000.0,0.002]
[1747600859752,1.01883361,104010.0,104000.0,0.002]
[1747600859959,1.03317541,104010.0,104000.0,0.002]
[1747600860163,1.03317541,104010.0,104000.0,0.001]
[1747600860366,0.99947541,104010.0,104000.0,0.001]
[1747600860572,0.90673672,104010.0,104000.0,0.0303]
[1747600860794,0.68265672,104010.0,104000.0,0.0293]
[1747600860998,0.65379372,104010.0,104000.0,0.0293]
[1747600861225,0.65579372,104010.0,104000.0,0.0293]
[1747600861428,0.95827061,104010.0,104000.0,0.001]
[1747600861631,0.65579372,104010.0,104000.0,0.001]
[1747600862035,0.65879372,104010.0,104000.0,0.001]
[1747600862876,0.65679372,104010.0,104000.0,0.001]
[1747600863087,0.65679372,104010.0,104000.0,0.002]
[1747600863288,0.65379372,104010.0,104000.0,0.002]
[1747600865042,0.65379372,104010.0,104000.0,0.028]
[1747600865251,0.8874079,104010.0,104000.0,0.06501538]
[1747600865423,0.34004,104010.0,104000.0,0.29501481]
[1747600865623,0.57078536,104010.0,104000.0,0.27578507]
[1747600865869,0.55155784,104010.0,104000.0,0.28860671]
[1747600866280,0.55155784,104010.0,104000.0,0.29822209]
[1747600868673,0.55155784,104010.0,104000.0,0.28860671]
[1747600868899,0.55155784,104010.0,104000.0,0.29822209]
[1747600869797,0.55155784,104010.0,104000.0,0.50014488]
[1747600870018,0.55155784,104010.0,104000.0,0.49052978]
[1747600870269,0.54194366,104010.0,104000.0,0.28860671]
[1747600870883,0.54194366,104010.0,104000.0,0.49052959]
[1747600871098,0.34965418,104010.0,104000.0,0.34099109]
[1747600871320,0.34004,104010.0,104000.0,0.34099109]
[1747600871541,4e-05,104010.0,104000.0,0.41839422]
[1747600871761,4e-05,104010.0,104000.0,0.84278744]
[1747600871988,4e-05,104010.0,104000.0,0.86269371]
[1747600872900,4e-05,104010.0,104000.0,0.86369371]
[1747600873603,4e-05,104010.0,104000.0,0.86469371]
[1747600874009,4e-05,104010.0,104000.0,0.91879371]
[1747600875076,4e-05,104010.0,104000.0,1.25879371]
[1747600875682,4e-05,104010.0,104000.0,1.27336335]
[1747600876095,4e-05,104010.0,104000.0,1.27236335]
[1747600876303,4e-05,104010.0,104000.0,1.27436335]
[1747600876485,4e-05,104010.0,104000.0,1.27736335]
[1747600877236,4e-05,104010.0,104000.0,1.27436335]
[1747600877450,4e-05,104010.0,104000.0,1.2828372]
[1747600877655,4e-05,104010.0,104000.0,1.2908372]
[1747600879621,4e-05,104010.0,104000.0,1.29468865]
[1747600880287,4e-05,104010.0,104000.0,1.30805001]
[1747600881577,4e-05,104010.0,104000.0,1.72005001]
[1747600883181,0.001,104030.0,104020.0,0.27521019]
[1747600883411,0.001,104030.0,104020.0,0.37251959]
[1747600883849,0.001,104030.0,104020.0,0.38171281]
[1747600884707,0.001,104030.0,104020.0,0.38271281]
[1747600885543,0.001,104030.0,104020.0,0.38371281]
[1747600885750,0.00104715,104030.0,104020.0,0.38371281]
[1747600886867,0.00104715,104030.0,104020.0,0.60743281]
[1747600891653,0.00104715,104030.0,104020.0,1.02247281]
[1747600892243,0.00104715,104030.0,104020.0,1.0339313]
[1747600896127,0.00204715,104030.0,104020.0,1.0226566]
[1747600896534,0.00204715,104030.0,104020.0,1.0498566]
[1747600898365,0.00204715,104030.0,104020.0,0.8261366]
[1747600898579,0.00204715,104030.0,104020.0,1.0498566]
[1747600898790,0.00204715,104030.0,104020.0,1.3898566]
[1747600899658,0.00204715,104030.0,104020.0,1.3888566]
[1747600899865,0.00204715,104030.0,104020.0,1.6151766]
[1747600900405,0.00204715,104030.0,104020.0,1.6141766]
[1747600900821,0.00204715,104030.0,104020.0,1.6161766]
[1747600901264,0.00204715,104030.0,104020.0,1.6160966]
[1747600901688,0.00204715,104030.0,104020.0,1.1691366]
[1747600902011,0.00204715,104030.0,104020.0,1.58931281]
[1747600902428,0.00204715,104030.0,104020.0,2.00131281]
[1747600907468,0.002,104050.0,104040.0,0.22106769]
[1747600907677,0.00204717,104050.0,104040.0,0.34467709]
[1747600908827,0.00204717,104050.0,104040.0,0.214356]
[1747600909042,0.00304717,104050.0,104040.0,0.214356]
[1747600909487,0.00304717,104050.0,104040.0,0.22354922]
[1747600910400,0.00404717,104050.0,104040.0,0.22354922]
[1747600911250,0.00404717,104050.0,104040.0,0.23505282]
[1747600912580,0.00404717,104050.0,104040.0,0.20875282]
[1747600914765,0.00404717,104050.0,104040.0,0.23625282]
[1747600915568,0.00404717,104050.0,104040.0,0.45945282]
[1747600920393,0.00404717,104050.0,104040.0,0.87441282]
[1747600921169,0.00404717,104050.0,104040.0,0.90071282]
[1747600921588,0.00404717,104050.0,104040.0,0.91024907]
[1747600921848,0.00404717,104050.0,104040.0,1.25024907]
[1747600922553,0.00304717,104050.0,104040.0,1.23874547]
[1747600922774,0.00204717,104050.0,104040.0,1.24074547]
[1747600923160,0.00204717,104050.0,104040.0,1.24274547]
[1747600925275,0.00204717,104050.0,104040.0,1.01954547]
[1747600925476,0.00204717,104050.0,104040.0,1.18894547]
[1747600925680,0.00204717,104050.0,104040.0,0.62574547]
[1747600925882,0.03034717,104050.0,104040.0,0.84894547]
[1747600926097,0.03034717,104050.0,104040.0,0.62574547]
[1747600926335,0.03034717,104050.0,104040.0,0.84894547]
[1747600928041,0.03034717,104050.0,104040.0,0.86428516]
[1747600931097,0.0675571,104050.0,104040.0,0.86428516]
[1747600931304,0.05794717,104050.0,104040.0,0.76697576]
[1747600932779,0.0675571,104050.0,104040.0,0.76697576]
[1747600932982,0.07716721,104050.0,104040.0,0.76697576]
[1747600933196,0.09638808,104050.0,104040.0,0.76697576]
[1747600933419,0.2886041,104050.0,104040.0,0.75736472]
[1747600933674,0.29821486,104050.0,104040.0,0.7574396]
[1747600933861,0.30546845,104050.0,104040.0,0.7574396]
[1747600934056,0.29585834,104050.0,104040.0,0.73438521]
[1747600934283,0.29585834,104050.0,104040.0,0.75360784]
[1747600934458,0.29585834,104050.0,104040.0,0.76321897]
[1747600935158,0.29585834,104050.0,104040.0,0.75360784]
[1747600935293,0.28624804,104050.0,104040.0,0.43966096]
[1747600935517,0.2670268,104050.0,104040.0,0.66250096]
[1747600935969,0.25977321,104050.0,104040.0,0.66250096]
[1747600936377,0.25977321,104050.0,104040.0,0.64699322]
[1747600936710,0.25977321,104050.0,104040.0,0.66721649]
[1747600937075,0.25977321,104050.0,104040.0,0.44437649]
[1747600937278,0.25977321,104050.0,104040.0,0.66821649]
[1747600937523,0.25016245,104050.0,104040.0,0.64899322]
[1747600937723,0.25016245,104050.0,104040.0,0.6586049]
[1747600937923,0.25016245,104050.0,104040.0,0.64899322]
[1747600938293,0.25016245,104050.0,104040.0,0.6586049]
[1747600939521,0.25016245,104050.0,104040.0,0.86045024]
[1747600940192,0.26938369,104050.0,104040.0,0.87006165]
[1747600940439,0.26938369,104050.0,104040.0,0.87006174]
[1747600940857,0.25977321,104050.0,104040.0,0.87006174]
[1747600941377,0.25977321,104050.0,104040.0,0.86045024]
[1747600941619,0.25977321,104050.0,104040.0,0.87006174]
[1747600942291,0.25977321,104050.0,104040.0,0.87967315]
[1747600944123,0.25977321,104050.0,104040.0,0.87006174]
[1747600944957,0.25977321,104050.0,104040.0,0.87967315]
[1747600945814,0.05794717,104050.0,104040.0,0.88928382]
[1747600946024,0.03995728,104050.0,104040.0,0.88928382]
[1747600946427,0.03034717,104050.0,104040.0,0.88928382]
[1747600946651,0.03995728,104050.0,104040.0,0.88928382]
[1747600946859,0.04956748,104050.0,104040.0,0.88928382]
[1747600947064,0.05917796,104050.0,104040.0,0.88928382]
[1747600947472,0.04956748,104050.0,104040.0,0.88928382]
[1747600948609,0.03034717,104050.0,104040.0,0.88928382]
[1747600948823,0.02126739,104050.0,104040.0,0.88928382]
[1747600949255,0.05827769,104050.0,104040.0,0.88928382]
[1747600949971,0.06788808,104050.0,104040.0,0.88928382]
[1747600950467,0.07749875,104050.0,104040.0,0.88928382]
[1747600950671,0.26971403,104050.0,104040.0,0.87967278]
[1747600950821,0.28720457,104050.0,104040.0,0.87967278]
[1747600951030,0.27759427,104050.0,104040.0,0.84126697]
[1747600951260,0.27759427,104050.0,104040.0,0.86049024]
[1747600951460,0.27759427,104050.0,104040.0,0.87010174]
[1747600951666,0.27759427,104050.0,104040.0,0.6586449]
[1747600952084,0.26798388,104050.0,104040.0,0.85087865]
[1747600953144,0.26798388,104050.0,104040.0,0.87010174]
[1747600955179,0.26798388,104050.0,104040.0,0.87971315]
[1747600955303,0.26798388,104050.0,104040.0,0.46475315]
[1747600955711,0.26798388,104050.0,104040.0,0.23407322]
[1747600955920,0.26798388,104050.0,104040.0,0.43591865]
[1747600956123,0.26798388,104050.0,104040.0,0.22265024]
[1747600956330,0.27503423,104050.0,104040.0,0.44553024]
[1747600957185,0.27503423,104050.0,104040.0,0.45514174]
[1747600957381,0.26798388,104050.0,104040.0,0.45514174]
[1747600959312,0.25837321,104050.0,104040.0,0.23407322]
[1747600959519,0.25837321,104050.0,104040.0,0.44553015]
[1747600959736,0.26816426,104050.0,104040.0,0.44553015]
[1747600960159,0.25837321,104050.0,104040.0,0.44553015]
[1747600960365,0.26543216,104050.0,104040.0,0.45514156]
[1747600960592,0.00910612,104050.0,104040.0,0.50356391]
[1747600960793,0.01871614,104050.0,104040.0,0.50356391]
[1747600960993,0.00910612,104050.0,104040.0,0.53156391]
[1747600961452,0.00910612,104050.0,104040.0,0.50356391]
[1747600961667,0.02832607,104050.0,104040.0,0.50356391]
[1747600961993,0.02832607,104050.0,104040.0,0.51507165]
[1747600962394,0.01871605,104050.0,104040.0,0.51507165]
[1747600963416,0.02832616,104050.0,104040.0,0.51507165]
[1747600963994,0.03793636,104050.0,104040.0,0.51507165]
[1747600966764,0.04754675,104050.0,104040.0,0.51507165]
[1747600969066,0.03793636,104050.0,104040.0,0.51507165]
[1747600969299,0.04754675,104050.0,104040.0,0.51507165]
[1747600970114,0.04754675,104050.0,104040.0,0.31645009]
[1747600971247,0.04754675,104050.0,104040.0,0.30494235]
[1747600971660,0.05715723,104050.0,104040.0,0.30494235]
[1747600973760,0.05715787,104050.0,104040.0,0.30494235]
[1747600975534,0.03793682,104050.0,104040.0,0.33324235]
[1747600976848,0.04754739,104050.0,104040.0,0.33324235]
[1747600977218,0.03793682,104050.0,104040.0,0.30494235]
[1747600977624,0.04754739,104050.0,104040.0,0.30494235]
[1747600978029,0.03793682,104050.0,104040.0,0.30494235]
[1747600978608,0.04754739,104050.0,104040.0,0.30494235]
[1747600981655,0.0475473,104050.0,104040.0,0.30494235]
[1747600982285,0.03793682,104050.0,104040.0,0.30494235]
[1747600982512,0.04754739,104050.0,104040.0,0.33284235]
[1747600982726,0.04754739,104050.0,104040.0,0.30494235]
[1747600982936,0.04754739,104050.0,104040.0,0.31645009]
[1747600982937,0.03793682,104050.0,104040.0,0.31645009]
[1747600983155,0.0475473,104050.0,104040.0,0.31645009]
[1747600986181,0.00910612,104050.0,104040.0,0.31645009]
[1747600986393,0.00910612,104050.0,104040.0,0.44315949]
[1747600987524,0.00204717,104050.0,104040.0,0.44315949]
[1747600987749,0.00204717,104050.0,104040.0,0.52056262]
[1747600987975,0.00204717,104050.0,104040.0,0.44699144]
[1747600991585,0.00204717,104050.0,104040.0,0.45619542]
[1747600993909,0.00204717,104050.0,104040.0,0.39759542]
[1747600994133,0.00204717,104050.0,104040.0,0.58438376]
[1747600994375,0.00204717,104050.0,104040.0,0.61248376]
[1747600995073,0.00204717,104050.0,104040.0,0.60864795]
[1747600995635,0.0116571,104050.0,104040.0,0.60864795]
[1747600996108,0.04048827,104050.0,104040.0,0.58054804]
[1747600996313,0.26160345,104050.0,104040.0,0.32947392]
[1747600996462,0.08957824,104050.0,104040.0,0.23216433]
[1747600996690,0.08957824,104050.0,104040.0,0.46325537]
[1747600996880,0.05977824,104050.0,104040.0,0.24177546]
[1747600997191,0.05977824,104050.0,104040.0,0.46325546]
[1747600997882,0.08957824,104050.0,104040.0,0.46325546]
[1747600998472,0.07996767,104050.0,104040.0,0.46325546]
[1747600998699,0.05731456,104050.0,104040.0,0.46325546]
[1747600999345,0.09592513,104050.0,104040.0,0.46325546]
[1747600999532,0.07670417,104050.0,104040.0,0.46325546]
[1747600999764,0.05731456,104050.0,104040.0,0.46325546]
[1747601000113,0.05731447,104050.0,104040.0,0.46325546]
[1747601001610,0.04770417,104050.0,104040.0,0.46325546]
[1747601001892,0.05731447,104050.0,104040.0,0.46325546]
[1747601002305,0.04770417,104050.0,104040.0,0.46325546]
[1747601005282,0.03809406,104050.0,104040.0,0.46325546]
[1747601005450,0.04770417,104050.0,104040.0,0.46325546]
[1747601007428,0.04770408,104050.0,104040.0,0.46325546]
[1747601007833,0.05731428,104050.0,104040.0,0.46325546]
[1747601008035,0.04770408,104050.0,104040.0,0.46325546]
[1747601008245,0.04770408,104050.0,104040.0,0.24177546]
[1747601008442,0.04770408,104050.0,104040.0,0.46325546]
[1747601009131,0.03809406,104050.0,104040.0,0.46325546]
[1747601009506,0.00919406,104050.0,104040.0,0.46325546]
[1747601009709,0.00919406,104050.0,104040.0,0.51975546]
[1747601010365,0.00204717,104050.0,104040.0,0.51975546]
[1747601011654,0.00204717,104050.0,104040.0,0.49015546]
[1747601011835,0.00204717,104050.0,104040.0,0.46325546]
[1747601012184,0.03114717,104050.0,104040.0,0.46325546]
[1747601013007,0.00204717,104050.0,104040.0,0.46325546]
[1747601016284,0.02994717,104050.0,104040.0,0.46325546]
[1747601016753,0.05764717,104050.0,104040.0,0.46325546]
[1747601017138,0.02994717,104050.0,104040.0,0.46325546]
[1747601022425,0.00204717,104050.0,104040.0,0.46325546]
[1747601022595,0.00204717,104050.0,104040.0,0.49195546]
[1747601022993,0.00204717,104050.0,104040.0,0.52085546]
[1747601023638,0.00204717,104050.0,104040.0,0.53619515]
[1747601024021,0.00204717,104050.0,104040.0,0.63350455]
[1747601025519,0.00204717,104050.0,104040.0,0.60460455]
[1747601025687,0.00204717,104050.0,104040.0,0.38312455]
[1747601026019,0.03164717,104050.0,104040.0,0.25711515]
[1747601026269,0.03164717,104050.0,104040.0,0.47787515]
[1747601026475,0.03164717,104050.0,104040.0,0.46253546]
[1747601026613,0.03885906,104050.0,104040.0,0.46253546]
[1747601029866,0.04846908,104050.0,104040.0,0.46253546]
[1747601030478,0.04846899,104050.0,104040.0,0.46253546]
[1747601035548,0.03885906,104050.0,104040.0,0.46253546]
[1747601036564,0.00925906,104050.0,104040.0,0.49043546]
[1747601036769,0.00925906,104050.0,104040.0,0.46253546]
[1747601037402,0.03785906,104050.0,104040.0,0.46253546]
[1747601037604,0.04746899,104050.0,104040.0,0.46253546]
[1747601038013,0.03785906,104050.0,104040.0,0.46253546]
[1747601041262,0.00925906,104050.0,104040.0,0.46253546]
[1747601042044,0.03785906,104050.0,104040.0,0.46253546]
[1747601044592,0.00925906,104050.0,104040.0,0.46253546]
[1747601045661,0.00925906,104050.0,104040.0,0.49053546]
[1747601048052,0.01886899,104050.0,104040.0,0.49053546]
[1747601048263,0.01886899,104050.0,104040.0,0.46253546]
[1747601048413,0.00925906,104050.0,104040.0,0.46253546]
[1747601050338,0.01886917,104050.0,104040.0,0.46253546]
[1747601050753,0.01986917,104050.0,104040.0,0.46253546]
[1747601051298,0.01986917,104050.0,104040.0,0.49163546]
[1747601051502,0.01025906,104050.0,104040.0,0.49163546]
[1747601051693,0.01986908,104050.0,104040.0,0.51853546]
[1747601052505,0.01025906,104050.0,104040.0,0.51853546]
[1747601052710,0.01025906,104050.0,104040.0,0.53387515]
[1747601052918,0.01986899,104050.0,104040.0,0.94883515]
[1747601055298,0.01986899,104050.0,104040.0,0.92193515]
[1747601056254,0.02947901,104050.0,104040.0,0.92193515]
[1747601056477,0.01986899,104050.0,104040.0,0.92193515]
[1747601056907,0.01025906,104050.0,104040.0,0.94873515]
[1747601057348,0.00304717,104050.0,104040.0,1.04604455]
[1747601059557,0.00304717,104050.0,104040.0,1.03454067]
[1747601060814,0.00304717,104050.0,104040.0,1.37454067]
[1747601061417,0.00304717,104050.0,104040.0,1.78654067]
[1747601062139,0.00304717,104050.0,104040.0,1.81343299]
[1747601062560,0.00304717,104050.0,104040.0,1.59893928]
[1747601062762,0.00304717,104050.0,104040.0,1.77389221]
[1747601063137,0.00304717,104050.0,104040.0,1.77589221]
[1747601063346,0.00304717,104050.0,104040.0,1.77789221]
[1747601067498,0.00304717,104050.0,104040.0,1.99737221]
[1747601068130,0.00204717,104050.0,104040.0,1.99637221]
[1747601074014,0.00204,104070.0,104060.0,0.6148252]
[1747601074242,0.00204,104070.0,104060.0,0.7121346]
[1747601074451,0.00204,104070.0,104060.0,1.1511746]
[1747601074898,0.00204,104070.0,104060.0,0.9051346]
[1747601075106,0.00204,104070.0,104060.0,0.8781346]
[1747601075281,0.00204,104070.0,104060.0,0.89347429]
[1747601075492,0.00204,104070.0,104060.0,0.92047429]
[1747601076332,0.00204,104070.0,104060.0,0.94727429]
[1747601076536,0.00204,104070.0,104060.0,0.94927429]
[1747601076763,8e-05,104080.0,104070.0,0.61480397]
[1747601076981,8e-05,104080.0,104070.0,1.15107337]
[1747601077600,0.0021,104090.0,104080.0,0.56098273]
[1747601077803,0.00257173,104090.0,104080.0,1.12697213]
[1747601078232,0.00257173,104090.0,104080.0,1.2442558]
[1747601078468,4e-05,104100.0,104090.0,0.2747615]
[1747601078654,0.00018146,104100.0,104090.0,0.3720709]
[1747601078961,0.00018146,104100.0,104090.0,0.5380309]
[1747601079100,0.00018146,104100.0,104090.0,0.3182709]
[1747601079332,0.00018146,104100.0,104090.0,0.7571109]
[1747601079554,0.00018146,104100.0,104090.0,0.7581109]
[1747601079752,0.00018146,104100.0,104090.0,0.3460709]
[1747601079972,0.00018146,104100.0,104090.0,0.8118709]
[1747601080485,0.00018146,104100.0,104090.0,1.1250709]
[1747601080821,0.0178375,104110.0,104100.0,0.61474027]
[1747601081038,0.0178375,104110.0,104100.0,0.71204967]
[1747601081668,0.01774947,104110.0,104100.0,0.71204967]
[1747601082523,0.01774947,104110.0,104100.0,0.72116717]
[1747601082732,0.01774947,104110.0,104100.0,0.72216717]
[1747601082971,0.01774947,104110.0,104100.0,1.16084717]
[1747601083137,0.01774947,104110.0,104100.0,0.72216717]
[1747601083381,0.01774947,104110.0,104100.0,1.16084717]
[1747601084221,0.01774947,104110.0,104100.0,1.17618686]
[1747601085511,0.01774947,104110.0,104100.0,1.12230686]
[1747601085916,0.01774947,104110.0,104100.0,0.68370686]
[1747601086153,0.04664947,104110.0,104100.0,1.12222686]
[1747601086549,0.04664947,104110.0,104100.0,0.90246686]
[1747601086822,0.01774947,104110.0,104100.0,0.90246686]
[1747601087555,0.01774947,104110.0,104100.0,0.68370686]
[1747601087760,0.01774947,104110.0,104100.0,1.12122686]
[1747601087963,0.01774947,104110.0,104100.0,1.12118686]
[1747601091241,0.01774947,104110.0,104100.0,1.14898686]
[1747601091445,0.01774947,104110.0,104100.0,1.12350686]
[1747601091675,0.01774947,104110.0,104100.0,1.17536686]
[1747601093140,0.01774947,104110.0,104100.0,1.17436686]
[1747601094102,0.01774947,104110.0,104100.0,1.17736686]
[1747601094456,0.01774947,104110.0,104100.0,1.18136686]
[1747601095570,0.01774947,104110.0,104100.0,1.16602717]
[1747601099160,4e-05,104120.0,104110.0,0.61841905]
[1747601099387,4e-05,104120.0,104110.0,0.71572845]
[1747601100347,4e-05,104120.0,104110.0,0.74202217]
[1747601101425,4e-05,104120.0,104110.0,0.74402217]
[1747601102006,4e-05,104120.0,104110.0,1.18102217]
[1747601102419,4e-05,104120.0,104110.0,1.13331745]
[1747601102953,4e-05,104120.0,104110.0,1.16221745]
[1747601103551,4e-05,104120.0,104110.0,1.14704123]
[1747601104973,4e-05,104120.0,104110.0,0.92880123]
[1747601105196,0.02754,104120.0,104110.0,1.11806123]
[1747601105446,0.02794,104120.0,104110.0,0.68118123]
[1747601105649,0.02794,104120.0,104110.0,1.11806123]
[1747601105650,0.05554,104120.0,104110.0,1.11806123]
[1747601105828,0.06514356,104120.0,104110.0,0.55990123]
[1747601106052,0.05554,104120.0,104110.0,0.55990123]
[1747601108498,0.06514347,104120.0,104110.0,0.55990123]
[1747601109650,0.05554,104120.0,104110.0,0.55990123]
[1747601110158,0.05554,104120.0,104110.0,0.34118123]
[1747601110159,0.06514356,104120.0,104110.0,0.34118123]
[1747601110412,0.06514356,104120.0,104110.0,0.45275655]
[1747601110636,0.0747474,104120.0,104110.0,0.45275655]
[1747601110875,0.27643747,104120.0,104110.0,0.22443198]
[1747601111120,0.59723026,104120.0,104110.0,0.0131175]
[1747601111562,0.60674878,104120.0,104110.0,0.0131175]
[1747601111943,0.59714457,104120.0,104110.0,0.02272272]
[1747601112142,0.59714457,104120.0,104110.0,0.01872272]
[1747601112352,0.59714457,104120.0,104110.0,0.22043235]
[1747601112546,0.42535244,104120.0,104110.0,0.23964196]
[1747601112775,0.61743849,104120.0,104110.0,0.22043235]
[1747601113315,0.60783456,104120.0,104110.0,0.0091175]
[1747601113519,0.59827035,104120.0,104110.0,0.0091175]
[1747601113680,0.60027035,104120.0,104110.0,0.0091175]
[1747601114079,0.60027035,104120.0,104110.0,0.21082722]
[1747601114465,0.60027035,104120.0,104110.0,0.01872272]
[1747601114906,0.60970349,104120.0,104110.0,0.22043235]
[1747601115308,0.60027035,104120.0,104110.0,0.22043235]
[1747601115515,0.60987437,104120.0,104110.0,0.23003729]
[1747601115866,0.60987437,104120.0,104110.0,0.23964214]
[1747601116347,0.60987437,104120.0,104110.0,0.2492469]
[1747601116523,0.60987437,104120.0,104110.0,0.24924635]
[1747601116924,0.60987437,104120.0,104110.0,0.24012885]
[1747601117565,0.41778832,104120.0,104110.0,0.24012829]
[1747601118934,0.41778832,104120.0,104110.0,0.23052372]
[1747601119627,0.41778832,104120.0,104110.0,0.22091905]
[1747601119987,0.60987437,104120.0,104110.0,0.22091905]
[1747601120619,0.60987437,104120.0,104110.0,0.21131429]
[1747601120833,0.60987437,104120.0,104110.0,0.21131466]
[1747601121360,0.60987437,104120.0,104110.0,0.29832255]
[1747601121776,0.60987437,104120.0,104110.0,0.22091942]
[1747601122279,0.45987437,104120.0,104110.0,0.22091942]
[1747601122584,0.21433437,104120.0,104110.0,0.22091942]
[1747601122942,0.21433437,104120.0,104110.0,0.21131466]
[1747601125149,0.21433437,104120.0,104110.0,0.20170972]
[1747601125396,0.26103035,104120.0,104110.0,0.22091979]
[1747601125511,0.26103035,104120.0,104110.0,0.21131485]
[1747601125710,0.26103035,104120.0,104110.0,0.22091989]
[1747601126469,0.26103035,104120.0,104110.0,0.23052483]
[1747601126880,0.26103035,104120.0,104110.0,0.24012968]
[1747601127087,0.26103035,104120.0,104110.0,0.23052483]
[1747601129836,0.26103035,104120.0,104110.0,0.22091989]
[1747601130039,0.25142605,104120.0,104110.0,0.21131485]
[1747601130481,0.0192097,104110.0,104100.0,0.43873962]
[1747601130704,0.05721437,104110.0,104100.0,0.42913422]
[1747601130939,0.06681941,104110.0,104100.0,0.42913422]
[1747601131175,0.06681941,104110.0,104100.0,0.43822259]
[1747601131931,0.26852913,104110.0,104100.0,0.43822314]
[1747601132169,0.2493197,104110.0,104100.0,0.43822314]
[1747601132392,0.2493197,104110.0,104100.0,0.44782882]
[1747601135105,0.2493197,104110.0,104100.0,0.22042314]
[1747601135330,0.2493197,104110.0,104100.0,0.43826314]
[1747601135551,0.05721474,104110.0,104100.0,0.45747441]
[1747601135760,0.05721474,104110.0,104100.0,0.46707991]
[1747601136901,0.06681996,104110.0,104100.0,0.46707991]
[1747601137106,0.04760961,104110.0,104100.0,0.46707991]
[1747601137518,0.05721465,104110.0,104100.0,0.46707991]
[1747601138776,0.04760961,104110.0,104100.0,0.46707991]
[1747601138992,0.028814,104110.0,104100.0,0.46707991]
[1747601139195,0.01920906,104110.0,104100.0,0.46707991]
[1747601139417,0.02881391,104110.0,104100.0,0.49407991]
[1747601140100,0.01920906,104110.0,104100.0,0.49407991]
[1747601140310,0.02881391,104110.0,104100.0,0.49407991]
[1747601141054,0.03841895,104110.0,104100.0,0.46707991]
[1747601141299,0.06711895,104110.0,104100.0,0.46707991]
[1747601142200,0.06711895,104110.0,104100.0,0.24923991]
[1747601142451,0.25922345,104110.0,104100.0,0.45747441]
[1747601142687,0.25922345,104110.0,104100.0,0.00908837]
[1747601142688,0.26711439,104110.0,104100.0,0.00908837]
[1747601142922,0.25750954,104110.0,104100.0,0.01869451]
[1747601143389,0.25750954,104110.0,104100.0,0.23653451]
[1747601143618,0.2479045,104110.0,104100.0,0.22692837]
[1747601144573,0.2479045,104110.0,104100.0,0.41905132]
[1747601144784,0.0558,104110.0,104100.0,0.42865737]
[1747601144985,0.0287,104110.0,104100.0,0.4574746]
[1747601146108,0.0287,104110.0,104100.0,0.2396346]
[1747601146341,0.0287,104110.0,104100.0,0.4574746]
[1747601148567,0.02624,104120.0,104110.0,0.22091905]
[1747601148781,4e-05,104120.0,104110.0,0.35312218]
[1747601149203,0.00698127,104120.0,104110.0,0.36221055]
[1747601150301,0.00998127,104120.0,104110.0,0.79951995]
[1747601150787,0.00304,104120.0,104110.0,0.79951995]
[1747601151227,0.00104,104120.0,104110.0,0.79951995]
[1747601151442,4e-05,104120.0,104110.0,0.79951995]
[1747601154523,4e-05,104120.0,104110.0,1.21151995]
[1747601158921,4e-05,104120.0,104110.0,1.13411682]
[1747601159261,4e-05,104120.0,104110.0,1.13611682]
[1747601160095,4e-05,104120.0,104110.0,1.13811682]
[1747601165632,0.00204,104130.0,104120.0,0.61589784]
[1747601165838,0.00204,104130.0,104120.0,1.3644663]
[1747601166510,4e-05,104140.0,104130.0,0.56087662]
[1747601166716,4e-05,104140.0,104130.0,0.92966602]
[1747601167131,4e-05,104140.0,104130.0,0.95004072]
[1747601168022,4e-05,104140.0,104130.0,0.95104072]
[1747601169269,4e-05,104140.0,104130.0,0.73456072]
[1747601169483,4e-05,104140.0,104130.0,0.95096072]
[1747601169696,4e-05,104140.0,104130.0,0.96521821]
[1747601173475,4e-05,104140.0,104130.0,0.98026665]
[1747601173919,4e-05,104140.0,104130.0,1.05766978]
[1747601175293,0.002,104150.0,104140.0,0.61499926]
[1747601175491,0.002,104150.0,104140.0,0.92914866]
[1747601176108,0.002,104150.0,104140.0,0.95328547]